Cogmind - Beta 15 @@@ ROGUE MODE // 2025.10.04 @ 12:53:18 Player: ty-ler64 Result: Destroyed by D-53 Grenadier with Mini Grenade Launcher Performance ------------- Evolutions (0) 0 Regions Visited (2) 400 Robots Destroyed (5) 25 Value Destroyed (196) 196 Prototype IDs (0) 0 Alien Tech Used (0) 0 Bonus (25) 25 TOTAL SCORE: 646 Bonus ------- Follower Combat Kills 25 Cogmind --------- Core Integrity 0/250 Matter 300/300 Energy 250/250 System Corruption 1% Temperature Cool (97) Movement Walking (190) Ox1 Location -10/Mines Parts ------- > --- POWER (1) -------- Ion Engine > --- PROPULSION (2) --- Improved Aluminum Leg Improved Aluminum Leg > --- UTILITY (2) ------ Small Storage Unit Field Recycling Unit > --- WEAPON (2) ------- Particle Cannon > --- INVENTORY (8) ---- Ion Engine Improved Aluminum Leg Beam Rifle Peak State ------------ > --- POWER ------------ Ion Engine > --- PROPULSION ------- Improved Aluminum Leg Improved Aluminum Leg > --- UTILITY ---------- Small Storage Unit Field Recycling Unit > --- WEAPON ----------- Particle Cannon Particle Cannon > --- INVENTORY -------- Ion Engine Improved Aluminum Leg Small Laser Beam Rifle [Rating: 12] Favorites ----------- Power Ion Engine Engine Ion Engine Propulsion Improved Aluminum Leg Leg Improved Aluminum Leg Utility Small Storage Unit Device Weight Redist. System Storage Small Storage Unit Weapon Assault Rifle Energy Gun EM Pulse Gun Energy Cannon Particle Cannon Ballistic Gun Assault Rifle Build | -11 -10 -10 ------- Run | Yrd Mat Min Slots Evolved . | . . . Power . | . . . Propulsion . | . . . Utility . | . . . Weapon . | . . . Parts Attached 15 | 6 5 4 Power 2 | 1 1 . Engine 2 | 1 1 . Core . | . . . Reactor . | . . . Propulsion 5 | 2 2 1 Treads . | . . . Leg 5 | 2 2 1 Wheel . | . . . Hover . | . . . Flight . | . . . Utility 4 | 1 2 1 Device 3 | . 2 1 Storage 1 | 1 . . Processor . | . . . Hackware . | . . . Protection . | . . . Artifact . | . . . Weapon 4 | 2 . 2 Energy Gun 1 | 1 . . Energy Cannon 2 | . . 2 Ballistic Gun 1 | 1 . . Ballistic Cannon . | . . . Launcher . | . . . Special Weapon . | . . . Impact Weapon . | . . . Slashing Weapon . | . . . Piercing Weapon . | . . . Special Melee Weapon . | . . . Unidentified Prototypes . | . . . Parts Lost 4 | . . 4 Power . | . . . Propulsion 1 | . . 1 Utility 1 | . . 1 Weapon 2 | . . 2 Highest Loss Streak 2 | . . 2 To Critical Strikes 1 | . . 1 Average Backups 5 | 1 5 5 Power . | . . 1 Propulsion 1 | . 1 1 Utility . | . . . Weapon 2 | . 2 2 Tool/Special . | . . . Unused Backups 7 | . 4 3 Power 1 | . 1 . Propulsion 2 | . 1 1 Utility . | . . . Weapon 4 | . 2 2 Tool/Special . | . . . Average Slot Usage (%) 92 | . 96 87 Engine 14 | . 14 14 Leg 26 | . 27 23 Device 10 | . 11 8 Storage 14 | . 14 14 Energy Gun 9 | . 14 2 Energy Cannon 6 | . . 14 Ballistic Gun 11 | . 14 8 Peak Build Rating 12 | 6 11 12 Average Rating 9 | 3 10 9 On Entrance 5 | . 6 10 Naked Turns . | . . . Heaviest Build 26 | 14 15 26 Greatest Support 32 | 20 32 26 Greatest Overweight (x) 1 | . 1 1 Average Overweight (x) . | . . . Largest Inventory Capacity 8 | 8 8 8 Average Capacity 7 | 7 8 8 Most Carried 8 | 5 8 8 Average Carried 5 | 1 6 5 Final Capacity 8 | 8 8 8 Final Carried 8 | 2 8 3 Class Distribution -------------------- 100% | Mutant Dominant Class ---------------- Mutant | -10/Materials Mutant | -10/Mines Resources | -11 -10 -10 ----------- Run | Yrd Mat Min Matter Collected 428 | 220 111 97 Remotely . | . . . Salvage Created 222 | . 87 135 Parts 9 | . 8 1 Haulers Intercepted . | . . . Recyclers Shooed . | . . . Parts Field Recycled . | . . . Retrieved Matter . | . . . Parts Self-Destructed . | . . . Prevented . | . . . Kills | -11 -10 -10 ------- Run | Yrd Mat Min Combat Hostiles Destroyed 5 | . 2 3 Guns 3 | . 2 1 Cannons 2 | . . 2 Classes Destroyed 1 | . 1 . Grunt 5 | . 2 3 Best Kill Streak 2 | . 2 1 Combat Bots Only 2 | . 2 1 Max Kills in Single Turn 1 | . 1 1 Gunslinging . | . . . Exploded . | . . . Melee . | . . . Uniques/NPCs Destroyed . | . . . Combat | -11 -10 -10 -------- Run | Yrd Mat Min Hostile Shots Fired 59 | . 5 54 Missed 12 | . 1 11 Hits 47 | . 4 43 Projectile 47 | . 4 43 AOE 14 | . . 14 Critical Strikes 2 | . . 2 Damage Taken 987 | . 42 945 Core 254 | . 10 244 Absorbed by Shields . | . . . Core Remaining (%) 100 | 100 . . Volleys Fired 36 | . 7 29 Largest 2 | . 2 2 Hottest 136 | . 60 136 Shots Fired 62 | . 14 48 Gun 45 | . 14 31 Cannon 17 | . . 17 Launcher . | . . . Special . | . . . Kinetic 31 | . 7 24 Thermal 17 | . . 17 Explosive . | . . . Electromagnetic 14 | . 7 7 Robot Hit Streak 5 | . 4 5 Robot Miss Streak 3 | . 1 3 Penetration Max . | . . . Secondary Targets . | . . . Shots Hit Robots 35 | . 8 27 Core Hits 13 | . 3 10 Critical Kills . | . . . Critical Parts Destroyed . | . . . Critical Strikes . | . . . Melee Attacks . | . . . Impact . | . . . Slashing . | . . . Piercing . | . . . Sneak Attacks . | . . . Combat Hostiles . | . . . Follow-up Attacks . | . . . Damage Inflicted 583 | . 111 472 Guns 368 | . 111 257 Cannons 144 | . . 144 Explosions 71 | . . 71 Melee . | . . . Ramming . | . . . Kinetic 259 | . 69 190 Thermal 215 | . . 215 Explosive . | . . . Electromagnetic 109 | . 42 67 Impact . | . . . Slashing . | . . . Piercing . | . . . Highest Corruption 1 | . 1 1 Average Corruption 1 | . 1 1 Corruption Purged . | . . . Corruption Blocked . | . . . Overload Shots . | . . . Overflow Damage . | . . . Projectiles . | . . . Explosions . | . . . Melee . | . . . Knockbacks . | . . . Impact . | . . . Kinetic . | . . . Secondary . | . . . Self-Inflicted Damage . | . . . Shots . | . . . Rammed . | . . . Targets Rammed . | . . . Kicked . | . . . Crushed . | . . . Highest Temperature 270 | . 12 270 Average Temperature 100 | . 9 117 Received Heat Transfer 264 | . 24 240 Siege Activations . | . . . Martial Activations . | . . . Shielding Activations . | . . . Robots Disrupted . | . . . Combat Hostiles . | . . . Robots Corrupted . | . . . Combat Hostiles . | . . . Parts Fried . | . . . Impact Corruptions . | . . . Robots Melted . | . . . Combat Hostiles . | . . . Parts Melted . | . . . Heat Transferred 359 | . . 359 Parts Sabotaged . | . . . Parts Stolen . | . . . Parts Stripped . | . . . Power Chain Reactions 1 | . . 1 Alert | -11 -10 -10 ------- Run | Yrd Mat Min Maximum Alert Level . | . . . Low Security (%) 100 | 100 100 100 Level 1 . | . . . Level 2 . | . . . Level 3 . | . . . Level 4 . | . . . Level 5 . | . . . High Security . | . . . Max Security . | . . . Peak Influence 40 | . 40 35 Initial . | . . . Average 5 | . 5 8 Influence Increases 172 | . 49 123 Destroy 0b10 Robot/C 120 | . 40 80 Destroy Leader 20 | . . 20 Allied During Kill 2 | . . 2 Successful Hack 9 | . 9 . Destroy Structure 6 | . . 6 Lose Combat Pursuer 15 | . . 15 Influence Decreases 172 | . 49 123 Time Decay 124 | . 49 75 Lost Part 16 | . . 16 Lost Ally 32 | . . 32 Squads Dispatched 1 | . 1 . Investigation 1 | . 1 . Extermination . | . . . Reinforcement . | . . . Assault . | . . . Garrison . | . . . Intercept . | . . . Searches Triggered . | . . . Construction Impeded . | . . . Haulers Reinforced . | . . . Active Scanning Responses . | . . . Cargo Convoy Interrupts . | . . . Stealth | -11 -10 -10 --------- Run | Yrd Mat Min Distress Signals 1 | . 1 . Communications Jammed . | . . . Distress Signals . | . . . Times Spotted 15 | . 3 12 Peak Tracking Total 15 | . 2 15 Tactical Retreats 1 | . . 1 Traps | -11 -10 -10 ------- Run | Yrd Mat Min Traps Triggered . | . . . Indirectly . | . . . Trap Hack Attempts . | . . . Triggered . | . . . Disarmed . | . . . Reprogrammed . | . . . Reused . | . . . Traps Extracted . | . . . Installed . | . . . Triggered . | . . . Machines | -11 -10 -10 ---------- Run | Yrd Mat Min Machines Disabled . | . . . Max in Single Turn . | . . . Machines Repaired . | . . . Machines Dismantled . | . . . Machines Sabotaged . | . . . Overloaded Fab Kills . | . . . Hacking | -11 -10 -10 --------- Run | Yrd Mat Min Machines Accessed 3 | . 3 . Terminals 3 | . 3 . Fabricators . | . . . Repair Stations . | . . . Recycling Units . | . . . Scanalyzers . | . . . Garrison Access . | . . . Total Hacks 8 | . 8 . Successful 4 | . 4 . Failed 4 | . 4 . Catastrophic 1 | . 1 . Database Lockouts . | . . . Manual . | . . . Terminals 8 | . 8 . Fabricators . | . . . Repair Stations . | . . . Recycling Units . | . . . Scanalyzers . | . . . Garrison Access . | . . . Terminal Hacks 4 | . 4 . Record 3 | . 3 . Robot Analysis 1 | . 1 . Fabricator Hacks . | . . . Repair Station Hacks . | . . . Recycling Unit Hacks . | . . . Scanalyzer . | . . . Garrison Access Hacks . | . . . Unauthorized Hacks . | . . . Terminals . | . . . Fabricators . | . . . Repair Stations . | . . . Recycling Units . | . . . Scanalyzers . | . . . Garrison Access . | . . . Data Cores Recovered . | . . . Used . | . . . Hacking Detections 3 | . 3 . Full Trace Events 1 | . 1 . Feedback Events 1 | . 1 . Corruption 1 | . 1 . Feedback Blocked . | . . . Robot Schematics Acquired . | . . . Robots Built . | . . . Authchips . | . . . Time . | . . . Total Robot Build Rating . | . . . Part Schematics Acquired . | . . . Parts Built . | . . . Authchips . | . . . Time . | . . . Total Part Build Rating . | . . . Parts Repaired . | . . . Time . | . . . Parts Recycled . | . . . Recycled Matter . | . . . Retrieved Matter . | . . . Retrieved Components . | . . . Parts Scanalyzed . | . . . Part Schematics Acquired . | . . . Parts Damaged . | . . . Bothacking | -11 -10 -10 ------------ Run | Yrd Mat Min Used RIF Installer . | . . . Robots Hacked . | . . . Non-combat . | . . . Combat . | . . . Robot Hacks Applied . | . . . Relay Couplers Released . | . . . Fabnet Peak Effective % . | . . . Robots Rewired . | . . . Allies Hacked . | . . . Hacks Repelled . | . . . Allies | -11 -10 -10 -------- Run | Yrd Mat Min Total Allies 2 | . . 2 Largest Group 2 | . . 2 Highest-Rated Group 43 | . . 43 Highest-Rated Ally 31 | . . 31 Total Orders . | . . . Ally Attacks 9 | . . 9 Total Damage 129 | . . 129 Kills 1 | . . 1 Allies Corrupted . | . . . Allies Melted . | . . . Intel | -11 -10 -10 ------- Run | Yrd Mat Min Active Infowar (turns) . | . . . Robot Analysis Total 1 | . 1 . Derelict Logs Recovered . | . . . Drone Launches . | . . . Drone Recoveries . | . . . Exploration | -11 -10 -10 ------------- Run | Yrd Mat Min Turns Passed 604 | 62 314 228 Spaces Moved 351 | 46 224 81 Core 9 | 9 . . Treads . | . . . Legs 342 | 37 224 81 Wheels . | . . . Hover . | . . . Flight . | . . . Fastest Speed 50 | 50 120 120 Average Speed 120 | 106 120 129 Slowest Speed 190 | 120 190 190 Overloaded Moves . | . . . Propulsion Burnouts . | . . . Robots Hopped . | . . . Potential Cave-ins 3 | . . 3 Cave-ins Triggered . | . . . Exploration Rate (%) 13 | 4 24 13 Regions Visited 2 Branch Regions 1 Pre-discovered Areas . | . . . Known Exits Taken . | . . . Unknown Exits Taken 2 | 1 1 . Scrap Searched . | . . . Spaces Dug . | . . . Terrain Destroyed 7 | . . 7 Melee . | . . . Projectile 1 | . . 1 AOE 6 | . . 6 Terrain Rammed . | . . . Walls Destroyed . | . . . Machines Disabled . | . . . Actions | -11 -10 -10 --------- Run | Yrd Mat Min Total 472 | 59 256 157 Wait 41 | . . 41 Move 349 | 45 223 81 Hop . | . . . Pick Up 22 | 8 14 . Fast Attach . | . . . Attach 14 | 6 4 4 Detach . | . . . Swap 1 | . 1 . Drop 9 | . 7 2 Fire 36 | . 7 29 Melee . | . . . Ram . | . . . Kick . | . . . Crush . | . . . Escape Stasis . | . . . Rewire . | . . . Trap . | . . . Miscellaneous . | . . . Route ------- -11/Scrapyard -10/Materials -10/Mines (discovered 1 exit: [*Mat]) History --------- Turn | Location | Event 7 | -11/Scrapyard | Discovered new exit (range 15) 63 | -11/Scrapyard | Entered Materials 213 | -10/Materials | Discovered new exit (range 15) 318 | -10/Materials | Build established: Mutant 377 | -10/Materials | Entered Mines 523 | -10/Mines | Discovered new exit (range 10) 567 | -10/Mines | Assembled infested the area 572 | -10/Mines | Assisted by a Guerilla fighting off Assembled 585 | -10/Mines | Core integrity fell below 50% 591 | -10/Mines | Core integrity fell below 20% 605 | -10/Mines | Destroyed by D-53 Grenadier with Mini Grenade Launcher Last Messages --------------- The unstable cave ceiling collapses. Open spaces previously occupied by now-destroyed walls and earth have a slight glow to them. Consecutive moves through these unstable areas may cause a cave-in, but only if doing so for extended periods. Tunneling a short distance between rooms is safe unless the area was destabilized by an explosion. The unstable cave ceiling collapses. DR-GHJ(h): "I'll hold them off! Go on ahead or try to find another way!" HV Slug penetrates as-05769. as-05769 destroyed. Critical hit (Destroy). Particle Cannon destroyed. HV Slug penetrates Wall. HV Slug penetrates D-53 Grenadier. D-53 Grenadier suffers critical hit (Destroy). The unstable cave ceiling collapses. D-53 Grenadier destroyed. [Achievement: First Step to Greatness] Map ----- +----------------------------------------------------+ | ??????????????????????????????????????? | | ??????????????????????????????????????? | | ??????????????????????????????????????? | | ??????????????????????????????????????? | | ??????????????????????????????????????? | | ?????????????????????????????????####?? | | ????????????????????????????????## ##? | | ???????????????????????????????## ## | | ???????????????????????????????# # | | ???????????????????????????????# | | ???????????????????????????????# % | | ???????????????????????????????# [[ | | ??????????????????????????#######[% ## | | ????????????????????# < #### | | ??????????????????????????####### #??? | | ?????????????????????????????#### #??? | | ????????????????????????????## #%"###? | | ????????????????#######?????# "% ## | | ???????????????## ####?## [ # | | ?????????????### # ### | | ?????????????# # | | ??????????????## # # | | ???# ????????# ## #% # # | | ?????# a###### ### ## | | ??????# aaa % % #?## #? | | ??????# #### @ ###??? ##? | | ????????????##h ; % ##????? #?? | | ????????????? d % #?????? #?? | | ?????????????# ####### #####??????###?? | | ????????????? "??????##??????????????? | | ????????????? "??????????????????????? | | ????????????# "??????????????????????? | | ????????????# ??????????????????????? | | ????????????# ??????????????????????? | | ????????????T ??????????????????????? | | ????????????# ??????????????????????? | | ????????????####??????????????????????? | | ??????????????????????????????????????? | | ??????????????????????????????????????? | | | | | | | | | | | | | | | | | | | | | | | +----------------------------------------------------+ Best States ------------- Heat Dissipation 35 Energy Generation 10 Energy Capacity 250 Matter Stores 300 Matter Capacity 300 Sight Range 16 Terrain Scan Density 10 Additional Mass Support 6 Evasion (%) 55 Item Schematics ----------------- None Robot Schematics ------------------ None Fabricated ------------ Nothing Repaired ---------- Nothing Alien Tech Used ----------------- None Achievements -------------- First Step to Greatness One Hack Too Far Challenges ------------ None Game ------ Seed GlidesysMolecularStreamer Manual? 0 Play Time 00:17:11 Cumulative 1.4 hours Start 2025.10.03 @ 23:20:54 End 2025.10.04 @ 12:53:18 Sessions 2 Manual Loads 0 Difficulty Rogue Special Mode None Game No. 2 Rogue 2 Adventurer 0 Explorer 0 Win Type - Total 0 Types 0/0/0/0/0/0/0/0/0/0 Lore% 3 Gallery% 2 Achievement% 2 Wizard Run 0 Options --------- Layout 1 ASCII 0 Keyboard 0 Movement Mouse Keybinds 0 Fullscreen 0 Font 24/Tamsyn Map View 59x45 Zoom Use 7% Tactical HUD 0 Map Filters NONE Filters NONE Steam 1 RUN: 5dc5f319-803c-4f85-93d8-f38e37856416